Cogmind - Beta 12 @@@ ROGUE MODE // 2023.04.02 @ 03:02:10 Player: Daniexpert Result: Destroyed by L-61 Swordsman with Power Sword Performance ------------- Evolutions (8) 4000 Regions Visited (29) 5800 Robots Destroyed (464) 2320 Value Destroyed (25653) 25653 Prototype IDs (60) 1200 Alien Tech Used (0) 0 Bonus (17145) 17145 TOTAL SCORE: 56118 Bonus ------- High Alert Combat Kills 5869 Follower Combat Kills 6741 Entered Garrisons 1400 Used RIF Installer 3500 Network Hubs Disabled 600 Aligned with FarCom 300 A7 Reached Mainframe 300 Met R17 at Cetus 500 Scanned by Researcher 500 Friendly Fire -2565 Cogmind --------- Core Integrity 0/1450 Matter 40/300 Energy 100/100 System Corruption 47% Temperature Cool (0) Movement Core (50) Location -2/Testing Parts ------- > --- POWER (3) -------- (None) > --- PROPULSION (6) --- (None) > --- UTILITY (12) ----- (None) > --- WEAPON (2) ------- (None) > --- INVENTORY (5) ---- Superbattery (1396) Gamma Rifle Omega Cannon Improved Plasma Cutter Peak State ------------ > --- POWER ------------ Particle Reactor Improved Quantum Reactor Improved Quantum Reactor > --- PROPULSION ------- Medium Treads Heavy Treads Biometal Medium Treads Biometal Heavy Treads > --- UTILITY ---------- Advanced Cooling System Cargo Storage Unit Advanced Signal Interpreter Experimental Targeting Computer Experimental Core Analyzer Advanced Transmission Jammer Centrium Medium Armor Plating Graphene Brace Advanced Force Field Relay Coupler [Swarmer] Relay Coupler [Grunt] > --- WEAPON ----------- Z-bomb Delivery System Advanced Remote Datajack > --- INVENTORY -------- Advanced Heat Sink Experimental Heat Sink Experimental Energy Well Superbattery Experimental Targeting Computer Advanced Target Analyzer Improved Heavy Armor Plating Centrium Medium Armor Plating Advanced Force Field System Shield Relay Coupler [NC] Relay Coupler [Brawler] Relay Coupler [Duelist] Relay Coupler [Duelist] Relay Coupler [Sentry] Relay Coupler [Behemoth] Relay Coupler [Behemoth] Relay Coupler [Proto] Long-range Tractor Beam Compact HERF Cannon Compact HERF Cannon Enhanced Nova Cannon Heavy Gauss Cannon Smartbomb Launcher Improved Plasma Cutter [Rating: 173] Favorites ----------- Power Quantum Reactor Engine Heavy Ion Engine Power Core Micro Fission Core Reactor Quantum Reactor Propulsion Light Treads Treads Light Treads Leg Biometal Leg Wheel Wheel Hover Unit Improved Antigrav System Utility Cargo Storage Unit Device Quantum Capacitor Storage Cargo Storage Unit Processor Advanced Targeting Computer Hackware Relay Coupler [Sentry] Protection Improved Medium Armor Plating Weapon Cooled Particle Cannon Energy Gun Improved EM Shotgun Energy Cannon Cooled Particle Cannon Ballistic Gun Improved Assault Rifle Ballistic Cannon Gauss Cannon Launcher Grenade Launcher Special Weapon Remote Datajack Impact Weapon Power Maul Slashing Weapon Plasma Sword Special Melee Weapon Datajack Build | -11 -10 -10 -9 -9 -9 -8 -8 -8 -8 -8 -7 -7 -6 -5 -5 -5 -5 -4 -4 -4 -4 -4 -4 -4 -4 -3 -3 -2 -2 ------- Run | Jun Mat Min Mat Min Exi Min Mat Gar Mat Gar Fac Gar Fac Fac Gar Fac Gar Fac Was Fac Ext Cet Arc Hub Gar Res Gar Res Tes Slots Evolved 16 | . . . 2 . . . 2 . . . 2 . 2 2 . . . 2 . . . . . . . 2 . 2 . Power 2 | . . . . . . . . . . . . . 1 . . . . . . . . . . . . . . 1 . Propulsion 4 | . . . 1 . . . 1 . . . . . . 2 . . . . . . . . . . . . . . . Utility 10 | . . . 1 . . . 1 . . . 2 . 1 . . . . 2 . . . . . . . 2 . 1 . Weapon . | . . . . . . . . . . . . . . . . . . . . . . . . . . . . . . Parts Attached 820 | 10 10 23 33 12 3 7 13 29 53 19 9 73 24 3 29 41 66 12 22 14 14 25 6 43 56 63 27 27 54 Power 62 | 2 1 1 6 1 . 2 1 . 4 . . 3 2 1 1 1 5 . 7 . . 2 . 3 6 2 3 2 6 Engine 16 | 2 1 1 4 . . 1 1 . 4 . . 1 1 . . . . . . . . . . . . . . . . Core 16 | . . . 2 1 . 1 . . . . . 1 1 1 1 1 5 . 1 . . . . . . . . . 1 Reactor 30 | . . . . . . . . . . . . 1 . . . . . . 6 . . 2 . 3 6 2 3 2 5 Propulsion 107 | 2 . 4 6 . . 1 5 11 26 4 1 8 . 1 4 6 5 . 3 . 1 2 . 2 3 1 . 2 9 Treads 95 | 2 . 1 4 . . 1 5 11 26 4 1 8 . 1 4 6 5 . 3 . 1 2 . 2 3 1 . 2 2 Leg 3 | . . 1 1 . . . . . . . . . . . . . . . . . . . . . . . . . 1 Wheel 5 | . . 2 1 . . . . . . . . . . . . . . . . . . . . . . . . . 2 Hover 4 | . . . . . . . . . . . . . . . . . . . . . . . . . . . . . 4 Flight . | . . . . . . . . . . . . . . . . . . . . . . . . . . . . . . Utility 346 | 3 2 5 10 6 1 1 1 3 10 4 5 28 12 1 18 17 39 8 9 6 11 14 4 17 29 34 14 16 18 Device 175 | 1 . 3 2 5 . . 1 . 1 1 3 12 8 1 10 11 16 2 3 5 8 6 3 9 18 20 7 9 10 Storage 22 | 2 2 1 . . 1 . . . 1 . . 1 . . 1 . 6 . . . . . . . 1 1 . 1 4 Processor 18 | . . . 6 1 . . . 2 . . . . 1 . . . 1 . 1 . 1 . . 1 1 2 . 1 . Hackware 45 | . . . . . . . . . 1 . . 3 1 . 2 4 5 4 . . . 2 . 5 2 4 5 5 2 Protection 86 | . . 1 2 . . 1 . 1 7 3 2 12 2 . 5 2 11 2 5 1 2 6 1 2 7 7 2 . 2 Artifact . | . . . . . . . . . . . . . . . . . . . . . . . . . . . . . . Weapon 305 | 3 7 13 11 5 2 3 6 15 13 11 3 34 10 . 6 17 17 4 3 8 2 7 2 21 18 26 10 7 21 Energy Gun 20 | 2 . . 1 3 . . 1 . . . . 6 . . . 1 . . . 2 . 1 . . 1 . . . 2 Energy Cannon 88 | . . . . . . . . . . . 1 3 3 . 1 8 7 3 . 1 . 4 1 10 14 9 9 4 10 Ballistic Gun 53 | 1 4 6 7 1 . 2 4 7 8 3 1 6 1 . . 1 . . . . . . . . . . . . 1 Ballistic Cannon 35 | . 1 1 . . . . . . 2 4 . 7 . . . 2 3 . 1 4 1 1 . 2 1 . . . 5 Launcher 17 | . 1 3 1 1 . 1 . 1 . . . . . . 1 2 . . . . . . . 2 . 2 . . 2 Special Weapon 46 | . 1 3 . . 1 . . . . . . 5 3 . 2 1 3 1 2 1 1 1 1 6 2 8 1 2 1 Impact Weapon 34 | . . . 2 . 1 . 1 7 2 3 1 7 3 . 2 1 4 . . . . . . . . . . . . Slashing Weapon 11 | . . . . . . . . . 1 . . . . . . 1 . . . . . . . 1 . 7 . 1 . Piercing Weapon . | . . . . . . . . . . . . . . . . . . . . . . . . . . . . . . Special Melee Weapon 1 | . . . . . . . . . . 1 . . . . . . . . . . . . . . . . . . . Unidentified Prototypes 22 | . . . 3 . . . . . 1 . 1 . . . . 3 . . 1 3 . . . 3 2 2 . . 3 Corrupted Parts 28 | . . . . . . 1 . . . . . 3 . 1 2 . 7 . . . . 3 1 2 5 . 1 . 2 System Corruption 109 | . . . . . . 6 . . . . . 17 . 3 13 . 35 . . . . 6 1 12 7 . 3 . 6 Parts Lost 96 | . . 8 7 . . 1 1 3 2 . . 6 . . 5 2 1 2 . . . . . 4 4 2 4 3 41 Power 15 | . . 1 2 . . . 1 . 1 . . 1 . . 1 . 1 . . . . . . . . . 1 . 6 Propulsion 29 | . . 4 2 . . . . 2 1 . . 2 . . 2 1 . . . . . . . 2 . 1 . 1 11 Utility 40 | . . 2 2 . . 1 . 1 . . . 3 . . 1 1 . 1 . . . . . 2 2 1 2 2 19 Weapon 12 | . . 1 1 . . . . . . . . . . . 1 . . 1 . . . . . . 2 . 1 . 5 Highest Loss Streak 19 | . . 4 6 . . 1 1 2 2 . . 4 . . 1 2 1 1 . . . . . 3 1 2 3 2 19 To Critical Strikes . | . . . . . . . . . . . . . . . . . . . . . . . . . . . . . . Average Slot Usage (%) 84 | . 100 98 97 99 83 99 100 100 99 100 99 91 71 69 69 70 70 77 73 72 72 77 76 77 69 78 79 81 75 Engine 3 | . 14 13 7 3 . . 2 9 8 9 7 5 4 . . . . . . . . . . . . . . . . Core 2 | . . . 3 7 11 10 6 . . . . . . 4 6 11 10 10 2 . . . . . . . . . 1 Reactor 3 | . . . . . . . . . . . . . 6 5 3 . . . 7 10 10 10 10 9 9 9 8 12 9 Treads 21 | . 28 13 28 33 33 33 36 36 35 36 30 25 13 17 17 17 18 15 15 15 15 15 15 15 15 13 14 13 8 Device 6 | . 14 12 2 6 . . 9 . . . 5 4 12 8 10 7 8 7 4 10 14 12 10 7 6 5 6 7 15 Storage 7 | . 14 14 11 11 11 11 9 9 9 9 7 7 6 5 5 5 5 5 5 5 5 5 5 5 5 4 4 4 5 Processor 7 | . . . 14 4 11 11 9 9 18 18 15 10 5 5 5 5 5 5 5 4 . . . . 7 10 9 8 9 Hackware 7 | . . . . . . . . . 1 . . 6 2 5 1 3 1 17 15 13 10 12 21 24 11 19 20 21 6 Protection 6 | . . . 3 11 11 11 9 16 7 9 16 12 4 2 3 4 4 5 9 6 10 9 2 2 5 3 3 4 3 Energy Cannon 2 | . . . . . . . . . . . 2 . 4 11 5 4 3 3 . . . 9 5 6 4 3 4 3 4 Ballistic Gun 4 | . 13 16 19 2 . 21 17 14 11 2 1 1 . . . . . . . . . . . . . . . . . Ballistic Cannon 2 | . 12 5 . . . . . . 5 12 9 3 . . . . 1 . 4 4 4 . . 1 . . . . . Special Weapon 1 | . . 3 . . 2 . . . . . . 2 1 . 2 4 . . . . . . 4 1 1 1 2 3 . Impact Weapon 1 | . . . 1 . 2 . . 3 . 2 . 3 3 . 2 . 4 5 . . . . . . . . . . . Naked Turns 2 | . . . . . . . . . . . . . . . . . . . . . . . . . . . . . 2 Heaviest Build 308 | 11 50 54 54 55 54 56 62 62 105 110 121 178 186 186 187 182 308 200 225 220 220 225 212 216 232 232 219 228 241 Greatest Support 235 | 40 40 40 63 63 63 63 80 83 104 90 88 150 150 225 225 225 225 225 225 225 225 235 235 235 235 225 220 220 208 Greatest Overweight (x) 65 | 3 1 16 4 . . . . . 1 1 1 2 1 . 1 1 2 . 1 1 . . 65 . 1 1 . 1 53 Average Overweight (x) . | . . 1 . . . . . . . 1 1 . 1 . . . . . . . . . . . . . . . 4 Largest Inventory Capacity 30 | 8 20 20 20 20 20 20 20 20 25 25 25 30 30 30 30 30 30 30 30 30 30 30 30 30 30 30 30 30 30 Average Capacity 26 | 7 16 20 20 20 20 20 20 20 20 25 25 26 30 30 30 30 30 30 30 30 30 30 30 30 30 30 30 30 28 Most Carried 30 | 4 20 20 20 20 20 20 20 20 24 25 25 30 30 30 30 30 30 29 30 30 30 30 30 30 30 30 30 30 30 Average Carried 25 | 2 15 19 19 19 19 19 19 19 20 24 24 25 29 28 29 29 29 28 29 29 29 29 29 29 29 29 29 27 25 Final Capacity 30 | 8 20 20 20 20 20 20 20 20 25 25 25 30 30 30 30 30 30 30 30 30 30 30 30 30 30 30 30 30 5 Final Carried 30 | 4 20 20 20 20 20 20 20 20 24 25 25 30 30 29 29 30 30 28 30 30 30 30 30 30 30 29 30 26 5 Class Distribution -------------------- 51% | Botlord-Mutant 19% | Scavenger-Mutant 16% | Mutant 13% | Bothacker-Mutant Dominant Class ---------------- Mutant | -10/Materials Mutant | -10/Mines Scavenger-Mutant | -9/Materials Scavenger-Mutant | -9/Mines Scavenger-Mutant | -9/Exiles Mutant | -8/Mines Scavenger-Mutant | -8/Materials Scavenger-Mutant | -8/Garrison Scavenger-Mutant | -8/Materials Mutant | -8/Garrison Bothacker-Mutant | -7/Factory Bothacker-Mutant | -7/Garrison Bothacker-Mutant | -6/Factory Bothacker-Mutant | -5/Factory Botlord-Mutant | -5/Garrison Botlord-Mutant | -5/Factory Botlord-Mutant | -5/Garrison Botlord-Mutant | -4/Factory Botlord-Mutant | -4/Waste Botlord-Mutant | -4/Factory Botlord-Mutant | -4/Extension Botlord-Mutant | -4/Cetus Botlord-Mutant | -4/Archives Botlord-Mutant | -4/Hub_04(d) Botlord-Mutant | -4/Garrison Botlord-Mutant | -3/Research Botlord-Mutant | -3/Garrison Botlord-Mutant | -2/Research Botlord-Mutant | -2/Testing Resources | -11 -10 -10 -9 -9 -9 -8 -8 -8 -8 -8 -7 -7 -6 -5 -5 -5 -5 -4 -4 -4 -4 -4 -4 -4 -4 -3 -3 -2 -2 ----------- Run | Jun Mat Min Mat Min Exi Min Mat Gar Mat Gar Fac Gar Fac Fac Gar Fac Gar Fac Was Fac Ext Cet Arc Hub Gar Res Gar Res Tes Matter Collected 17158 | 334 444 677 859 226 42 117 401 752 1050 583 90 1456 227 30 522 764 1278 58 380 306 348 319 91 973 1794 1027 731 582 697 Remotely 2350 | . . . . . . . . . 56 107 . 455 70 . . . 394 . . . 25 128 . 328 323 148 . 200 116 Salvage Created 23433 | 222 500 252 1147 57 . 115 235 721 1276 176 61 1508 193 30 1076 1634 2039 58 179 531 696 154 400 1106 2145 2472 1307 1109 2034 Parts 997 | 21 37 23 70 8 . 4 13 28 76 8 2 52 9 2 38 71 63 . 7 11 25 7 27 67 58 129 51 32 58 Haulers Intercepted 16 | . 2 . 3 . . . 1 . 4 . . . . . . 1 . . . 2 . . . . . 1 . 2 . Recyclers Shooed 7 | . . . 3 . . . 1 . 1 . . . . . . . . . . . 1 . . . . 1 . . . Parts Field Recycled . | . . . . . . . . . . . . . . . . . . . . . . . . . . . . . . Retrieved Matter . | . . . . . . . . . . . . . . . . . . . . . . . . . . . . . . Parts Self-Destructed . | . . . . . . . . . . . . . . . . . . . . . . . . . . . . . . Prevented . | . . . . . . . . . . . . . . . . . . . . . . . . . . . . . . Kills | -11 -10 -10 -9 -9 -9 -8 -8 -8 -8 -8 -7 -7 -6 -5 -5 -5 -5 -4 -4 -4 -4 -4 -4 -4 -4 -3 -3 -2 -2 ------- Run | Jun Mat Min Mat Min Exi Min Mat Gar Mat Gar Fac Gar Fac Fac Gar Fac Gar Fac Was Fac Ext Cet Arc Hub Gar Res Gar Res Tes Combat Hostiles Destroyed 376 | . 14 21 20 3 . 3 4 16 22 6 1 22 2 . 26 25 29 1 . 1 13 2 3 21 32 31 23 11 24 Melee 12 | . . . . . . . . . . . . 4 . . . . . 1 . . . . . . . 6 . 1 . Guns 67 | . 2 2 20 3 . 1 4 16 15 1 1 2 . . . . . . . . . . . . . . . . . Cannons 219 | . 9 4 . . . . . . 7 5 . 15 . . 22 22 26 . . 1 13 . . 14 15 19 19 10 18 AOE 37 | . 3 15 . . . 2 . . . . . . . . 2 . . . . . . . . 6 . 5 1 . 3 Classes Destroyed 25 | 3 5 2 3 . . 1 . . 1 . . 3 . . 1 . 1 . . . . . . . 2 1 . . 2 Worker 19 | 2 . 1 . 1 . . . . 1 . . . 1 . . . . . . . . . . 7 . 2 . 2 2 Builder 12 | . 1 1 2 . . . . . 1 . . . 1 . . . . . . . 1 . . 3 . 1 . . 1 Tunneler 10 | 5 . 1 . 3 . . . . . . . . . 1 . . . . . . . . . . . . . . . Hauler 16 | . 2 . 3 . . . 1 . 4 . . . . . . 1 . . . 2 . . . . . 1 . 2 . Recycler 13 | 1 . . 2 . . . . . . . . . . . . 1 . . . 2 . . . . . 6 . . 1 Operator 5 | . . . 1 . . . . . . . . . . . . . . . . . . . 3 1 . . . . . Watcher 15 | . 2 . 1 . . . . . 5 . . . 1 . . . . . . . . . . 2 2 1 . 1 . Swarmer 91 | . 3 3 4 3 . . 1 3 4 . . 8 . . 13 5 12 . . . 1 . . 3 7 10 11 . . Cutter 3 | . . . . . . . . . . . . . . . 1 . 2 . . . . . . . . . . . . Saboteur 3 | . . . . . . . . . . . . . . . . . . . . . . . . . 1 2 . . . Grunt 118 | . 11 6 10 . . 2 1 10 8 4 . . . . 10 10 10 1 . . 4 . . 1 9 5 5 4 7 Brawler 7 | . . . 1 . . . . . 1 2 . . . . 1 . . . . . . . . . . 1 1 . . Duelist 7 | . . . . . . 1 . . 4 . . . . . . 1 . . . . . . . . . . 1 . . Protector 2 | . . . . . . . . . 1 . . . . . . . . . . . . . . 1 . . . . . Researcher 3 | . . . . . . . . . . . . . . . . . . . . . . . . . . . . . 3 Sentry 44 | . . . 5 . . . 2 3 4 . 1 4 1 . . 5 2 . . . 5 . 3 1 4 1 . . 3 Demolisher 1 | . . 1 . . . . . . . . . . . . . . . . . . . . . . . . . . . Specialist 6 | . . . . . . . . . . . . 1 . . . . . . . . . . . . 3 . . 2 . Hunter 17 | . . . . . . . . . . . . 4 . . . . . . . 1 1 . . . 5 . . 2 4 Programmer 51 | . . . . . . . . . . . . 5 1 . 1 4 3 . . . . . . 11 1 11 4 2 8 Heavy 2 | . . . . . . . . . . . . . . . . . . . . . . . . . . 1 . 1 . Q-Series 2 | . . . . . . . . . . . . . . . . . . . . . . . . . . . . . 2 Behemoth 4 | . . . . . . . . . . . . . . . . . 1 . . . 1 . . . 1 . 1 . . Cetus Guard 2 | . . . . . . . . . . . . . . . . . . . . . . 2 . . . . . . . Lightning 4 | . . . . . . . . . . . . . . . . . . . . . . . . 4 . . . . . Executioner 2 | . . . . . . . . . . . . . . . . . . . . . . . . . 2 . . . . Assembled 11 | . . 11 . . . . . . . . . . . . . . . . . . . . . . . . . . . Thug 2 | . . . . . . . . . . . . . . . . . . . 1 . 1 . . . . . . . . Savage 1 | . . . . . . . . . . . . . . . . . . . . . . . . 1 . . . . . Martyr 2 | . . . . . . . . . . . . . . . . . . . 2 . . . . . . . . . . Best Kill Streak 13 | 3 5 13 10 4 . 3 2 3 8 2 1 6 1 1 6 4 5 1 . 3 3 2 3 8 13 10 9 6 13 Combat Bots Only 13 | . 4 13 10 3 . 3 2 3 8 2 1 6 1 . 6 4 5 1 . 1 3 2 3 6 13 6 9 5 10 Max Kills in Single Turn 4 | 1 2 4 1 2 . 1 1 1 1 1 1 1 1 1 1 1 1 1 1 1 1 1 1 4 1 3 1 1 1 Gunslinging 1 | . . . . 1 . . . . . . . . . . . . . . . . . . . . . . . . . Exploded 4 | . 2 4 . . . 1 . . . . . . . . 1 . . . . . . . . 3 . 1 1 . 1 Melee 1 | . . . . . . . . . . . . 1 . . . . . 1 . . . . . . . 1 . 1 . Uniques/NPCs Destroyed . | . . . . . . . . . . . . . . . . . . . . . . . . . . . . . . Combat | -11 -10 -10 -9 -9 -9 -8 -8 -8 -8 -8 -7 -7 -6 -5 -5 -5 -5 -4 -4 -4 -4 -4 -4 -4 -4 -3 -3 -2 -2 -------- Run | Jun Mat Min Mat Min Exi Min Mat Gar Mat Gar Fac Gar Fac Fac Gar Fac Gar Fac Was Fac Ext Cet Arc Hub Gar Res Gar Res Tes Damage Taken 30016 | 34 286 990 840 64 . 150 273 842 1084 410 55 2446 370 . 2087 1435 2128 358 18 143 736 221 56 3078 2245 1380 1182 902 6203 Core 2830 | . 48 126 133 . . 22 16 94 53 18 . 162 24 . 96 54 81 13 . 31 23 . . 193 29 67 75 84 1388 Absorbed by Shields 6437 | . . . . . . . 108 71 . . . . . . 371 263 1228 135 . 53 274 81 20 40 678 638 769 902 806 Reduced by Siege Mode 1253 | . . . . . . . . . . . . . . . 121 94 227 . . . . 6 . 442 181 50 47 81 4 Redirected to Shielding 9 | . . 9 . . . . . . . . . . . . . . . . . . . . . . . . . . . Regen/Repaired (Parts) 1634 | . . . . . . . . . 121 . . . . . . 47 . . 783 28 264 76 . . . 315 . . . Core Remaining (%) 74 | 100 . 30 . . . 61 . . . 67 . 76 97 . . . 76 . . . . . . . 74 . 89 . . Volleys Fired 1925 | 23 42 50 77 7 . 5 24 55 87 28 1 154 27 8 171 144 191 17 6 21 46 9 80 149 130 83 83 87 120 Largest 2 | 2 2 2 2 2 . 2 2 2 2 2 2 2 1 1 1 1 1 1 1 2 1 2 2 2 1 1 2 1 2 Hottest 321 | 60 100 120 46 90 . 46 48 48 73 96 73 96 90 90 90 90 105 105 80 138 80 321 162 181 120 120 188 120 214 Shots Fired 2345 | 46 74 76 152 12 . 6 48 100 168 48 2 191 27 8 173 143 187 17 6 23 46 17 93 181 115 83 87 88 128 Gun 665 | 46 37 32 152 10 . 4 48 96 137 9 1 77 3 . . 8 . . . 2 . 1 . . . . . . 2 Cannon 1306 | . 29 15 . . . . . . 31 39 1 82 18 8 152 115 174 11 6 17 46 15 22 119 101 58 72 54 121 Launcher 40 | . 3 13 . 2 . 2 . 4 . . . . . . 2 . . . . . . . . 6 . 5 . . 3 Special 334 | . 5 16 . . . . . . . . . 32 6 . 19 20 13 6 . 4 . 1 71 56 14 20 15 34 2 Kinetic 877 | 23 61 47 152 . . 4 48 96 168 48 2 78 . . . 3 44 . 6 14 46 . . 22 . . . . 15 Thermal 860 | 19 10 16 . . . . . . . . . 21 21 8 150 120 105 11 . 5 . 1 71 111 19 44 23 49 56 Explosive 40 | . 3 13 . 2 . 2 . 4 . . . . . . 2 . . . . . . . . 6 . 5 . . 3 Electromagnetic 372 | 4 . . . 10 . . . . . . . 60 . . 2 . 25 . . . . 15 22 30 82 14 49 7 52 Robot Hit Streak 36 | 8 15 6 31 9 . 8 19 18 36 15 17 35 9 . 30 36 20 13 2 5 10 7 7 11 30 26 25 27 20 Robot Miss Streak 10 | 5 3 2 3 2 . . 2 3 2 1 . 4 1 . 8 2 10 1 3 2 6 4 5 7 4 1 2 2 3 Penetration Max 1 | . . . . . . . . . . . . . . . . 1 1 . . . . . . . 1 . 1 . 1 Secondary Targets 8 | . . 1 1 1 . . . 3 2 . . . . . . . . . . . . . . . . . . . . Max Gunslinging Chain 1 | . . 1 1 1 . . . 1 1 . . . . . . . . . . . . . . . . . . . . Capacitor 513 | . . . . . . . . . . . . 1 21 8 152 120 130 . . . . . . . . . . . 81 Shots Hit Robots 1662 | 30 51 31 115 5 . 5 38 72 138 45 2 144 23 . 109 114 141 18 2 12 26 10 26 97 91 92 65 74 86 Core Hits 747 | 12 29 48 41 5 . 6 8 36 58 9 2 35 6 1 38 47 52 3 2 5 17 2 16 99 30 52 25 22 41 Critical Kills 28 | . . . . . . . . . 1 . . . 1 . 2 5 12 . . 1 . . . 5 1 . . . . Critical Parts Destroyed 31 | . . . . . . . . . . . . 1 . . . . 23 . . . . . . 7 . . . . . Critical Strikes 120 | . 1 1 . . . . . . 4 6 . 3 1 . 2 5 35 . . 2 4 . 4 14 22 5 5 . 6 Meltdown 12 | . . . . . . . . . . . . . 1 . 2 2 3 . . 1 . . . 2 1 . . . . Destroy 46 | . . . . . . . . . 1 . . . . . . 3 32 . . . . . . 10 . . . . . Blast 21 | . 1 1 . . . . . . 3 6 . 2 . . . . . . . 1 4 . . . . . . . 3 Corrupt 31 | . . . . . . . . . . . . . . . . . . . . . . . . . 21 2 5 . 3 Smash 1 | . . . . . . . . . . . . 1 . . . . . . . . . . . . . . . . . Sever 9 | . . . . . . . . . . . . . . . . . . . . . . . 4 2 . 3 . . . Melee Attacks 165 | . . . 9 . . . 1 23 6 20 1 24 5 . 16 . 13 7 . . . . . 2 . 37 . 1 . Impact 119 | . . . 9 . . . 1 23 6 14 1 24 5 . 16 . 13 7 . . . . . . . . . . . Slashing 40 | . . . . . . . . . . . . . . . . . . . . . . . . 2 . 37 . 1 . Piercing . | . . . . . . . . . . . . . . . . . . . . . . . . . . . . . . Sneak Attacks 17 | . . . 1 . . . . . . 6 . 5 1 . . . . 1 . . . . . . . 2 . 1 . Combat Hostiles 5 | . . . . . . . . . . . . 4 . . . . . . . . . . . . . . . 1 . Follow-up Attacks . | . . . . . . . . . . . . . . . . . . . . . . . . . . . . . . Damage Inflicted 52918 | 327 826 1448 1685 109 . 297 615 1279 2645 938 49 3136 574 16 3176 2658 4127 467 290 616 2897 260 1085 5188 3945 4798 2459 2086 4922 Guns 7771 | 305 255 269 1625 68 . 42 614 1116 1941 98 20 1058 86 . . 226 . . . 14 . . . . . . . . 34 Cannons 34910 | . 406 176 . . . . . . 656 840 29 1345 384 . 2904 2413 4127 188 290 590 2783 260 487 2667 3945 2245 2409 1883 3883 Explosions 6402 | 22 159 1003 . . . 199 . 163 . . . 134 . . 272 . . . . . . . . 2071 . 1324 50 . 1005 Melee 2381 | . . . 60 . . . . . . . . 590 104 . . . . 279 . . . . . 39 . 1206 . 103 . Ramming 442 | . 6 . . 41 . 56 1 . 48 . . 9 . 16 . 19 . . . 12 114 . 7 23 . 23 . 67 . Kinetic 14720 | 123 598 445 1625 . . 42 614 1116 2597 938 49 1111 . . . 74 902 . 290 523 2783 . . 271 . . . . 619 Thermal 18966 | 164 63 . . . . . . . . . . 590 470 . 2904 2565 2515 188 . 81 . . 591 2200 570 1996 888 1634 1547 Explosive 5841 | . 159 1003 . . . 199 . 163 . . . . . . 272 . . . . . . . . 1855 . 1185 . . 1005 Electromagnetic 10568 | 40 . . . 68 . . . . . . . 836 . . . . 710 . . . . 260 487 800 3375 388 1571 282 1751 Impact 1033 | . . . 60 . . . . . . . . 590 104 . . . . 279 . . . . . . . . . . . Slashing 1348 | . . . . . . . . . . . . . . . . . . . . . . . . 39 . 1206 . 103 . Piercing . | . . . . . . . . . . . . . . . . . . . . . . . . . . . . . . Highest Corruption 63 | . . . 12 12 12 18 . . . . . 22 1 3 17 18 54 . . . 1 7 7 52 63 6 13 9 47 Average Corruption 17 | . . . 11 12 12 12 . . . . . 10 1 3 5 15 34 . . . 1 2 5 23 56 3 11 4 18 Corruption Purged 15 | . . . . . . . . . . . . . . . . 7 . . . . . . 8 . . . . . . Corruption Blocked 80 | . . . . . . . . . . . . . . . . . . . . . . . . . . . . . 80 Effects 954 | . . . 37 44 31 36 . . . . . 92 2 4 51 97 129 . . . 5 8 27 97 125 23 63 8 75 Message Errors 226 | . . . 6 15 5 13 . . . . . 20 . 2 15 22 29 . . . 2 1 8 18 25 6 18 . 21 Matter Fused 219 | . . . 9 11 9 7 . . . . . 21 . . 11 31 25 . . . 1 2 6 20 30 6 16 2 12 Heat Flow Errors 104 | . . . 5 5 5 3 . . . . . 9 1 2 3 7 9 . . . . 2 2 17 16 2 3 . 13 Energy Discharges 102 | . . . 8 5 9 5 . . . . . 8 . . 3 8 17 . . . 1 1 2 11 7 4 3 3 7 Parts Rejected 9 | . . . . . . . . . . . . 2 . . 2 . 1 . . . . . . 3 . . . . 1 Parts Fused 16 | . . . 1 2 . . . . . . . . 1 . 1 2 3 . . . . . 1 . 3 1 1 . . Data Loss (minor) 118 | . . . 2 3 . 7 . . . . . 14 . . 12 8 17 . . . . 1 4 11 15 3 12 . 9 Data Loss (major) 38 | . . . . 1 3 . . . . . . 4 . . 2 3 4 . . . 1 1 1 3 6 1 5 2 1 Misfires 38 | . . . 1 . . . . . . . . 4 . . 2 6 9 . . . . . 3 3 4 . 3 1 2 Alerts 18 | . . . 2 2 . . . . . . . 3 . . . 2 1 . . . . . . 2 . . 2 . 4 Misdirections 9 | . . . . . . . . . . . . 1 . . . 1 1 . . . . . . 2 . . . . 4 Weapon Failures 57 | . . . 3 . . 1 . . . . . 6 . . . 7 13 . . . . . . 7 19 . . . 1 Overload Shots 33 | . . . . . . . . . . . . . 3 7 6 12 4 . . . . 1 . . . . . . . Overflow Damage 1569 | . 11 14 38 . . 1 . . 19 32 . 156 . . 74 28 34 1 68 35 173 . 6 177 153 153 111 52 233 Projectiles 1072 | . 1 . . . . . . . 19 32 . 32 . . 41 28 34 . 68 35 165 . 6 66 153 111 111 52 118 Explosions 295 | . 10 14 . . . . . . . . . . . . 33 . . . . . . . . 111 . 12 . . 115 Melee 202 | . . . 38 . . 1 . . . . . 124 . . . . . 1 . . 8 . . . . 30 . . . Knockbacks 57 | . 6 1 . . . . . . 2 2 . 7 . . . . 12 3 . 2 12 . . 6 . . . 2 2 Impact 7 | . . . . . . . . . . . . . . . . . . 3 . . 1 . . 1 . . . 2 . Kinetic 43 | . 5 1 . . . . . . 2 2 . 6 . . . . 10 . . 1 9 . . 5 . . . . 2 Secondary 7 | . 1 . . . . . . . . . . 1 . . . . 2 . . 1 2 . . . . . . . . Self-Inflicted Damage 421 | 34 . 42 . . . 41 . 33 . . . 54 . . . . . . . . . . . 217 . . . . . Shots 16 | 1 . 2 . . . 2 . 1 . . . 1 . . . . . . . . . . . 9 . . . . . Rammed 36 | . 2 . 2 1 . 6 1 . 7 . . 1 . 1 . 1 . . . 1 5 . . 1 . 3 . 4 . Targets Rammed 44 | . 2 . 3 5 . 6 1 . 7 . . 1 . 1 . 1 . . . 1 6 . 1 1 . 3 . 5 . Kicked . | . . . . . . . . . . . . . . . . . . . . . . . . . . . . . . Crushed 8 | . . . 1 4 . . . . . . . . . . . . . . . . 1 . 1 . . . . 1 . Highest Temperature 499 | 32 60 80 233 250 270 218 30 114 86 270 48 372 148 183 231 335 275 146 119 168 310 276 199 323 499 259 266 321 354 Average Temperature 78 | 9 19 23 82 98 118 77 11 29 21 81 32 79 42 84 77 68 95 73 50 41 102 112 82 89 99 70 68 121 107 Received Heat Transfer 4359 | . 135 171 291 15 . 99 103 463 243 171 12 270 120 . 417 409 455 8 9 . 103 . . 21 187 103 71 40 443 Effects 14 | . . . 2 . . . . . . . . 3 . . 1 . . . . . . . . 1 2 . . 4 1 Shutdowns 1 | . . . . . . . . . . . . . . . . . . . . . . . . . 1 . . . . Energy Bleed 3 | . . . 2 . . . . . . . . . . . . . . . . . . . . . 1 . . . . Interference 10 | . . . . . . . . . . . . 3 . . 1 . . . . . . . . 1 . . . 4 1 Siege Activations 52 | . . . . . . . . . . . . . . . 4 8 12 . . . 1 1 . 8 7 4 4 2 1 Total Turns 1073 | . . . . . . . . . . . . . . . 78 111 212 . . . 15 12 . 283 132 54 79 77 20 Longest Duration 103 | . . . . . . . . . . . . . . . 39 36 60 . . . 15 12 . 103 41 37 58 40 20 Robots Corrupted 45 | . . . . . . . . . . . . 7 . . . . 6 . . . . 2 3 . 18 2 3 . 4 Combat Hostiles 29 | . . . . . . . . . . . . . . . . . . . . . . 2 3 . 17 1 3 . 3 Parts Fried 118 | . . . 1 . . . . . . . . 14 . . . . 11 . . . . 2 5 11 43 2 13 3 13 Impact Corruptions 9 | . . . 1 . . 1 . . . . . 3 . . . . . 1 . 1 1 . . . . 1 . . . Robots Melted 14 | . . . . . . . . . . . . . 2 . 2 3 3 . . 1 . . . 2 1 . . . . Combat Hostiles 11 | . . . . . . . . . . . . . 2 . 2 3 3 . . . . . . 1 . . . . . Parts Melted 61 | 1 . . . . . . . . . . . 2 6 . 9 11 10 1 . 2 . . . 2 2 8 2 2 3 Heat Transferred 20852 | 375 125 . . . . . . . . . . 829 694 . 3733 3456 2579 259 . 137 . . 1295 2245 424 1543 642 1406 1110 Parts Sabotaged 1 | . . . . . . . . . . . . . . . . . . . . . . . . . 1 . . . . Parts Stolen . | . . . . . . . . . . . . . . . . . . . . . . . . . . . . . . Parts Stripped . | . . . . . . . . . . . . . . . . . . . . . . . . . . . . . . Power Chain Reactions 7 | 1 . . . . . . . . . . . 1 . . . . . . . . . . . 3 . 1 1 . . Missiles Intercepted . | . . . . . . . . . . . . . . . . . . . . . . . . . . . . . . Alert | -11 -10 -10 -9 -9 -9 -8 -8 -8 -8 -8 -7 -7 -6 -5 -5 -5 -5 -4 -4 -4 -4 -4 -4 -4 -4 -3 -3 -2 -2 ------- Run | Jun Mat Min Mat Min Exi Min Mat Gar Mat Gar Fac Gar Fac Fac Gar Fac Gar Fac Was Fac Ext Cet Arc Hub Gar Res Gar Res Tes Peak Influence 2175 | 40 271 163 472 190 . 73 174 1243 889 1232 692 2175 1190 527 1688 905 1868 1012 345 413 908 1272 597 359 1596 1372 2068 1326 560 Initial 1163 | . 26 42 63 89 . . . 113 605 564 646 344 1141 508 368 886 326 980 345 2 202 451 428 100 150 897 994 1163 409 Average 642 | 21 136 52 293 42 . 32 62 615 602 940 634 1134 1080 515 1141 369 876 993 209 143 436 892 456 117 1058 1035 1714 781 341 Maximum Alert Level 5 | . 1 . 2 . . . . 4 3 4 2 5 4 2 5 3 5 3 1 2 3 4 2 1 4 4 5 4 2 Low Security (%) 23 | 100 93 100 10 100 . 100 100 3 . . . . . . . 16 . . 57 65 . . . 79 1 . . . 3 Level 1 17 | . 6 . 82 . . . . 14 6 . . 7 . . 1 56 6 . 42 28 60 . 27 20 9 . . 2 70 Level 2 20 | . . . 7 . . . . 48 65 18 100 21 . 100 13 11 37 . . 5 19 27 72 . 3 . . 55 25 Level 3 19 | . . . . . . . . 26 27 45 . 23 47 . 32 15 22 100 . . 19 58 . . 32 79 5 13 . Level 4 13 | . . . . . . . . 7 . 36 . 23 52 . 39 . 24 . . . . 14 . . 52 20 24 28 . Level 5 5 | . . . . . . . . . . . . 23 . . 13 . 8 . . . . . . . . . 69 . . High Security . | . . . . . . . . . . . . . . . . . . . . . . . . . . . . . . Max Security . | . . . . . . . . . . . . . . . . . . . . . . . . . . . . . . Squads Dispatched 72 | . 3 . 2 1 . . 2 . 8 . . . 4 . . 9 . 3 . 4 2 1 . 7 . 11 . 7 8 Investigation 10 | . 2 . . 1 . . . . 4 . . . . . . 1 . . . . 1 1 . . . . . . . Extermination 21 | . . . . . . . . . . . . . 2 . . 3 . 1 . 1 . . . 6 . 4 . 1 3 Reinforcement 23 | . 1 . 2 . . . . . 2 . . . . . . 1 . 1 . 3 1 . . 1 . 1 . 5 5 Assault 10 | . . . . . . . . . 2 . . . 2 . . 1 . 1 . . . . . . . 3 . 1 . Garrison 8 | . . . . . . . 2 . . . . . . . . 3 . . . . . . . . . 3 . . . Intercept . | . . . . . . . . . . . . . . . . . . . . . . . . . . . . . . Searches Triggered . | . . . . . . . . . . . . . . . . . . . . . . . . . . . . . . Construction Impeded 5 | . . . 1 . . . . . 1 . . . . . . . . . . . . . . 1 . . . 1 1 Haulers Reinforced 1 | . . . . . . . . . . . . . . . . . . 1 . . . . . . . . . . . Active Scanning Responses . | . . . . . . . . . . . . . . . . . . . . . . . . . . . . . . Cargo Convoy Interrupts . | . . . . . . . . . . . . . . . . . . . . . . . . . . . . . . Alert ID Control Effect 60 | . . . . . . . . . . . . 4 . . 15 . 2 2 . . . . . . 8 7 8 14 . Stealth | -11 -10 -10 -9 -9 -9 -8 -8 -8 -8 -8 -7 -7 -6 -5 -5 -5 -5 -4 -4 -4 -4 -4 -4 -4 -4 -3 -3 -2 -2 --------- Run | Jun Mat Min Mat Min Exi Min Mat Gar Mat Gar Fac Gar Fac Fac Gar Fac Gar Fac Was Fac Ext Cet Arc Hub Gar Res Gar Res Tes Distress Signals 20 | . . . . . . . 1 . 3 . . . . . 1 1 . . . 4 2 2 1 2 1 . . 1 1 Communications Jammed 263 | . . . . . . . . . . . . . . . . . . . . . . . . 248 1 . . 14 . Distress Signals 263 | . . . . . . . . . . . . . . . . . . . . . . . . 248 1 . . 14 . Times Spotted 790 | . 22 25 28 5 . 3 5 19 46 13 1 49 16 . 46 36 56 8 1 12 31 13 66 45 49 52 56 48 39 Peak Tracking Total 15 | . 3 15 9 3 . 3 4 6 10 4 1 6 9 . 6 4 8 8 1 3 5 5 2 7 9 7 6 9 10 Tactical Retreats 41 | . . . 2 . . . 1 2 1 . . 3 . . 2 2 12 . . . 1 . . . 3 2 5 1 4 Traps | -11 -10 -10 -9 -9 -9 -8 -8 -8 -8 -8 -7 -7 -6 -5 -5 -5 -5 -4 -4 -4 -4 -4 -4 -4 -4 -3 -3 -2 -2 ------- Run | Jun Mat Min Mat Min Exi Min Mat Gar Mat Gar Fac Gar Fac Fac Gar Fac Gar Fac Was Fac Ext Cet Arc Hub Gar Res Gar Res Tes Traps Triggered 27 | . . . . . . . . 1 6 5 . 4 2 1 . . 3 1 . . . . . . 2 . 1 . 1 Indirectly . | . . . . . . . . . . . . . . . . . . . . . . . . . . . . . . Trap Hack Attempts . | . . . . . . . . . . . . . . . . . . . . . . . . . . . . . . Triggered . | . . . . . . . . . . . . . . . . . . . . . . . . . . . . . . Disarmed . | . . . . . . . . . . . . . . . . . . . . . . . . . . . . . . Reprogrammed . | . . . . . . . . . . . . . . . . . . . . . . . . . . . . . . Reused . | . . . . . . . . . . . . . . . . . . . . . . . . . . . . . . Traps Extracted . | . . . . . . . . . . . . . . . . . . . . . . . . . . . . . . Installed . | . . . . . . . . . . . . . . . . . . . . . . . . . . . . . . Triggered . | . . . . . . . . . . . . . . . . . . . . . . . . . . . . . . Machines | -11 -10 -10 -9 -9 -9 -8 -8 -8 -8 -8 -7 -7 -6 -5 -5 -5 -5 -4 -4 -4 -4 -4 -4 -4 -4 -3 -3 -2 -2 ---------- Run | Jun Mat Min Mat Min Exi Min Mat Gar Mat Gar Fac Gar Fac Fac Gar Fac Gar Fac Was Fac Ext Cet Arc Hub Gar Res Gar Res Tes Machines Disabled 73 | . . . . 1 . . 1 3 3 4 . 7 . . 13 2 3 . . 1 1 3 2 6 10 . 8 1 4 Max in Single Turn 2 | . . . . 1 . . 1 1 1 1 . 2 . . 2 1 1 . . . 1 2 1 1 1 . 1 1 1 Garrison Access 1 | . . . . . . . . . . . . . . . . . . . . . . . . . . 1 . . . Garrison Relay 23 | . . . . . . . . 2 . 2 . 2 . . 4 . 3 . . . . . . . 5 . 5 . . Phase Generator 2 | . . . . . . . . . . . . 1 . . 1 . . . . . . . . . . . . . . Network Hub 3 | . . . . . . . . . . . . . . . . . . . . . . . . 3 . . . . . Machines Repaired . | . . . . . . . . . . . . . . . . . . . . . . . . . . . . . . Machines Sabotaged . | . . . . . . . . . . . . . . . . . . . . . . . . . . . . . . Overloaded Fab Kills . | . . . . . . . . . . . . . . . . . . . . . . . . . . . . . . Hacking | -11 -10 -10 -9 -9 -9 -8 -8 -8 -8 -8 -7 -7 -6 -5 -5 -5 -5 -4 -4 -4 -4 -4 -4 -4 -4 -3 -3 -2 -2 --------- Run | Jun Mat Min Mat Min Exi Min Mat Gar Mat Gar Fac Gar Fac Fac Gar Fac Gar Fac Was Fac Ext Cet Arc Hub Gar Res Gar Res Tes Machines Accessed 93 | . 6 1 5 1 2 . 3 3 12 2 2 3 3 2 2 7 1 2 . 4 7 2 1 8 2 7 2 . 3 Terminals 62 | . 4 1 3 . . . 2 3 6 2 1 3 1 . 2 5 1 2 . . 7 2 . 7 2 4 2 . 2 Fabricators 7 | . . . . . . . . . . . . . 1 1 . 1 . . . 3 . . . . . . . . 1 Repair Stations 3 | . . . . . . . . . 2 . . . . . . . . . . 1 . . . . . . . . . Recycling Units 8 | . 2 . 2 . . . . . 2 . . . 1 . . . . . . . . . . . . 1 . . . Scanalyzers 1 | . . . . . . . . . 1 . . . . . . . . . . . . . . . . . . . . Garrison Access 8 | . . . . . . . 1 . 1 . 1 . . 1 . 1 . . . . . . . 1 . 2 . . . Total Hacks 222 | . 20 6 12 1 2 . 6 6 28 3 4 3 6 4 3 15 1 4 . 6 12 3 1 30 10 24 2 . 10 Successful 86 | . 9 1 3 1 2 . 2 2 17 1 3 1 3 1 1 5 . 3 . 4 6 1 1 8 1 7 1 . 2 Failed 135 | . 11 4 9 . . . 4 4 11 2 1 2 3 3 2 10 1 1 . 2 6 2 . 22 9 17 1 . 8 Catastrophic 38 | . . . . . . . 1 1 4 . . 2 . . 1 3 1 . . 1 3 1 . 4 2 10 . . 4 Database Lockouts 1 | . . 1 . . . . . . . . . . . . . . . . . . . . . . . . . . . Manual 74 | . 8 6 8 . 1 . 2 1 13 . 2 . 2 . . 7 . 1 . 2 1 1 . 10 1 7 . . 1 Terminals 163 | . 13 6 7 . . . 4 6 15 3 3 3 2 . 3 13 1 4 . . 12 3 . 29 10 17 2 . 7 Fabricators 14 | . . . . . . . . . . . . . 3 3 . 1 . . . 4 . . . . . . . . 3 Repair Stations 9 | . . . . . . . . . 7 . . . . . . . . . . 2 . . . . . . . . . Recycling Units 21 | . 7 . 5 . . . . . 4 . . . 1 . . . . . . . . . . . . 4 . . . Scanalyzers 1 | . . . . . . . . . 1 . . . . . . . . . . . . . . . . . . . . Garrison Access 10 | . . . . . . . 2 . 1 . 1 . . 1 . 1 . . . . . . . 1 . 3 . . . Terminal Hacks 50 | . 5 1 1 1 2 . 1 2 8 1 1 1 . . 1 3 . 2 . . 5 1 1 6 1 4 1 . 1 Record 5 | . . . . . 1 . . . . . . . . . . . . . . . . 1 1 2 . . . . . Robot Analysis 9 | . 4 1 . . . . . . 1 . . . . . . 1 . 1 . . 1 . . . . . . . . Open Door 9 | . . . . 1 . . . 1 . 1 . 1 . . . . . . . . 4 . . . . . 1 . . Emergency Access Points 2 | . . . . . . . . 1 . . . . . . 1 . . . . . . . . . . . . . . Terminal Index 4 | . . . . . . . 1 . . . . . . . . 1 . 1 . . . . . 1 . . . . . Unreport Threat 6 | . . . . . . . . . 3 . . . . . . 1 . . . . . . . 1 . . . . 1 Locate Traps 4 | . 1 . . . . . . . 1 . 1 . . . . . . . . . . . . . . 1 . . . Maintenance Status 1 | . . . . . . . . . . . . . . . . . . . . . . . . . . 1 . . . Hauler Manifests 3 | . . . . . . . . . 1 . . . . . . . . . . . . . . 1 . 1 . . . Zone Layout 5 | . . . 1 . . . . . 2 . . . . . . . . . . . . . . 1 . 1 . . . Garrison Registry 1 | . . . . . . . . . . . . . . . . . . . . . . . . . 1 . . . . EX-Prototype ID Bank 1 | . . . . . 1 . . . . . . . . . . . . . . . . . . . . . . . . Fabricator Hacks 4 | . . . . . . . . . . . . . 1 . . 1 . . . 1 . . . . . . . . 1 Network Status 4 | . . . . . . . . . . . . . 1 . . 1 . . . 1 . . . . . . . . 1 Repair Station Hacks 5 | . . . . . . . . . 4 . . . . . . . . . . 1 . . . . . . . . . Scan Component 4 | . . . . . . . . . 3 . . . . . . . . . . 1 . . . . . . . . . Repair 1 | . . . . . . . . . 1 . . . . . . . . . . . . . . . . . . . . Recycling Unit Hacks 5 | . 2 . 1 . . . . . 1 . . . 1 . . . . . . . . . . . . . . . . Retrieve Components 5 | . 2 . 1 . . . . . 1 . . . 1 . . . . . . . . . . . . . . . . Scanalyzer . | . . . . . . . . . . . . . . . . . . . . . . . . . . . . . . Garrison Access Hacks 9 | . . . . . . . 1 . 1 . 1 . . 1 . 1 . . . . . . . 1 . 3 . . . Unlock Access 7 | . . . . . . . 1 . 1 . 1 . . 1 . 1 . . . . . . . 1 . 1 . . . Seal Access 1 | . . . . . . . . . . . . . . . . . . . . . . . . . . 1 . . . Coupler Status 1 | . . . . . . . . . . . . . . . . . . . . . . . . . . 1 . . . Unauthorized Hacks 13 | . 2 . 1 . . . . . 3 . 1 . 1 . . . . 1 . 2 1 . . 1 . . . . . Terminals 4 | . . . . . . . . . . . 1 . . . . . . 1 . . 1 . . 1 . . . . . Track 1 | . . . . . . . . . . . . . . . . . . . . . 1 . . . . . . . . Assimilate 1 | . . . . . . . . . . . . . . . . . . . . . . . . 1 . . . . . Operators 2 | . . . . . . . . . . . 1 . . . . . . 1 . . . . . . . . . . . Fabricators 3 | . . . . . . . . . . . . . 1 . . . . . . 2 . . . . . . . . . Liberate 1 | . . . . . . . . . . . . . . . . . . . . 1 . . . . . . . . . Haulers 2 | . . . . . . . . . . . . . 1 . . . . . . 1 . . . . . . . . . Repair Stations . | . . . . . . . . . . . . . . . . . . . . . . . . . . . . . . Recycling Units 5 | . 2 . 1 . . . . . 2 . . . . . . . . . . . . . . . . . . . . Reject 1 | . . . 1 . . . . . . . . . . . . . . . . . . . . . . . . . . Tunnel 4 | . 2 . . . . . . . 2 . . . . . . . . . . . . . . . . . . . . Scanalyzers 1 | . . . . . . . . . 1 . . . . . . . . . . . . . . . . . . . . Extract 1 | . . . . . . . . . 1 . . . . . . . . . . . . . . . . . . . . Garrison Access . | . . . . . . . . . . . . . . . . . . . . . . . . . . . . . . Data Cores Recovered . | . . . . . . . . . . . . . . . . . . . . . . . . . . . . . . Used . | . . . . . . . . . . . . . . . . . . . . . . . . . . . . . . Hacking Detections 71 | . 4 1 4 . . . 3 3 10 1 1 2 2 2 2 6 1 2 . 3 5 2 . 7 2 5 . . 3 Full Trace Events 4 | . . . . . . . . . 1 . . . . . . 1 . . . . 1 1 . . . . . . . Feedback Events . | . . . . . . . . . . . . . . . . . . . . . . . . . . . . . . Feedback Blocked . | . . . . . . . . . . . . . . . . . . . . . . . . . . . . . . Robot Schematics Acquired 1 | . . . . . . . . . . . . . . . . . . . . . . . . . . . . . 1 Robots Built . | . . . . . . . . . . . . . . . . . . . . . . . . . . . . . . Authchips . | . . . . . . . . . . . . . . . . . . . . . . . . . . . . . . Time . | . . . . . . . . . . . . . . . . . . . . . . . . . . . . . . Total Robot Build Rating . | . . . . . . . . . . . . . . . . . . . . . . . . . . . . . . Part Schematics Acquired 6 | . . . . . . . . . 2 . . . . . . . . . . . . . . . . . . . 4 Parts Built . | . . . . . . . . . . . . . . . . . . . . . . . . . . . . . . Authchips . | . . . . . . . . . . . . . . . . . . . . . . . . . . . . . . Time . | . . . . . . . . . . . . . . . . . . . . . . . . . . . . . . Total Part Build Rating . | . . . . . . . . . . . . . . . . . . . . . . . . . . . . . . Parts Repaired 1 | . . . . . . . . . 1 . . . . . . . . . . . . . . . . . . . . Time 38 | . . . . . . . . . 38 . . . . . . . . . . . . . . . . . . . . Parts Recycled . | . . . . . . . . . . . . . . . . . . . . . . . . . . . . . . Recycled Matter . | . . . . . . . . . . . . . . . . . . . . . . . . . . . . . . Retrieved Matter . | . . . . . . . . . . . . . . . . . . . . . . . . . . . . . . Retrieved Components 33 | . 12 . 9 . . . . . 9 . . . 3 . . . . . . . . . . . . . . . . Parts Scanalyzed . | . . . . . . . . . . . . . . . . . . . . . . . . . . . . . . Part Schematics Acquired . | . . . . . . . . . . . . . . . . . . . . . . . . . . . . . . Parts Damaged . | . . . . . . . . . . . . . . . . . . . . . . . . . . . . . . Bothacking | -11 -10 -10 -9 -9 -9 -8 -8 -8 -8 -8 -7 -7 -6 -5 -5 -5 -5 -4 -4 -4 -4 -4 -4 -4 -4 -3 -3 -2 -2 ------------ Run | Jun Mat Min Mat Min Exi Min Mat Gar Mat Gar Fac Gar Fac Fac Gar Fac Gar Fac Was Fac Ext Cet Arc Hub Gar Res Gar Res Tes Used RIF Installer 7 | . . . . . . . . 1 . 1 . 1 . . 1 . 1 . . . . . . . 1 . 1 . . Code Merge 2 | . . . . . . . . . . . . . . . . . . . . . . . . . 1 . 1 . . Robot Detection 1 | . . . . . . . . . . . . . . . 1 . . . . . . . . . . . . . . Patrol Navigation 1 | . . . . . . . . . . . . 1 . . . . . . . . . . . . . . . . . Alert ID Control 1 | . . . . . . . . . . 1 . . . . . . . . . . . . . . . . . . . Structural Interface 1 | . . . . . . . . . . . . . . . . . 1 . . . . . . . . . . . . Robots Hacked 76 | . . . . . . . . . . . . 9 1 . 3 5 9 2 . 1 . 1 . 4 2 14 11 13 1 Non-combat 15 | . . . . . . . . . . . . . 1 . . 3 . 2 . 1 . . . 1 . 5 . 2 . Combat 61 | . . . . . . . . . . . . 9 . . 3 2 9 . . . . 1 . 3 2 9 11 11 1 Robot Hacks Applied 107 | . . . . . . . . . . . . 11 1 . 4 10 10 3 . 3 . 1 . 7 2 18 11 25 1 parse_system 4 | . . . . . . . . . . . . . . . 1 . . . . . . 1 . 1 . . . 1 . no_distress 1 | . . . . . . . . . . . . . . . . . . . . . . . . . . 1 . . . find_chute 1 | . . . . . . . . . . . . . . . . . . 1 . . . . . . . . . . . find_fabricator 2 | . . . . . . . . . . . . . . . . . . 1 . . . . . . . 1 . . . drop_inventory 5 | . . . . . . . . . . . . . 1 . . 1 . 1 . . . . . . . 2 . . . ignore_parts 1 | . . . . . . . . . . . . . . . . . . . . . . . . . . 1 . . . purge_threat 22 | . . . . . . . . . . . . . . . . 5 . . . 2 . . . 2 . . . 13 . mark_security 1 | . . . . . . . . . . . . . . . . . . . . . . . . . . . . 1 . reboot_propulsion 1 | . . . . . . . . . . . . 1 . . . . . . . . . . . . . . . . . scatter_targeting 5 | . . . . . . . . . . . . 1 . . . . . . . . . . . 1 . . 1 2 . disrupt_area 1 | . . . . . . . . . . . . 1 . . . . . . . . . . . . . . . . . overload_power 1 | . . . . . . . . . . . . . . . . . 1 . . . . . . . . . . . . amplify_resonance 14 | . . . . . . . . . . . . 1 . . . 1 3 . . . . . . . . 1 5 3 . wipe_record 1 | . . . . . . . . . . . . . . . 1 . . . . . . . . . . . . . . reboot_system 4 | . . . . . . . . . . . . 3 . . . . . . . . . . . . . 1 . . . overwrite_iff 15 | . . . . . . . . . . . . 2 . . . 1 2 . . . . . . . . 5 2 3 . streamctrl_low 1 | . . . . . . . . . . . . . . . . . . . . . . . . . . 1 . . . streamctrl_high 1 | . . . . . . . . . . . . . . . 1 . . . . . . . . . . . . . . formatsys_low 6 | . . . . . . . . . . . . . . . . 2 . . . 1 . . . 1 . 1 . . 1 formatsys_high 19 | . . . . . . . . . . . . 2 . . 1 . 4 . . . . . . 2 2 3 3 2 . formatsys_deep 1 | . . . . . . . . . . . . . . . . . . . . . . . . . . 1 . . . Relay Couplers Released 99 | . . . . . . . . 6 . 8 . 8 . . 16 . 12 . . . . . . . 21 4 21 3 . Machine Destruction 93 | . . . . . . . . 6 . 8 . 8 . . 16 . 12 . . . . . . . 21 1 21 . . Programmers 6 | . . . . . . . . . . . . . . . . . . . . . . . . . . 3 . 3 . Attached 43 | . . . . . . . . . . . . 3 1 . 2 4 5 4 . . . 2 . 4 2 4 5 5 2 Merged Code Value 122 | . . . . . . . . . . . . . . . . . . . . . . . . . 71 29 22 . . Fabnet Peak Effective % . | . . . . . . . . . . . . . . . . . . . . . . . . . . . . . . Robots Rewired 47 | . . . . . . . . 3 . 2 . 5 . . 3 . . 1 . . 14 . . . 5 . 14 . . Allies Hacked 5 | . . . . . . . . . . . . . . . . 1 . . . . . . . 1 . 1 1 1 . Hacks Repelled . | . . . . . . . . . . . . . . . . . . . . . . . . . . . . . . Allies | -11 -10 -10 -9 -9 -9 -8 -8 -8 -8 -8 -7 -7 -6 -5 -5 -5 -5 -4 -4 -4 -4 -4 -4 -4 -4 -3 -3 -2 -2 -------- Run | Jun Mat Min Mat Min Exi Min Mat Gar Mat Gar Fac Gar Fac Fac Gar Fac Gar Fac Was Fac Ext Cet Arc Hub Gar Res Gar Res Tes Total Allies 126 | . . . . 5 . . . 3 . 2 . 13 . . 5 3 6 1 20 1 18 1 . 4 9 11 19 4 1 Largest Group 20 | . . . . 4 3 1 . 3 3 2 . 4 . . 4 6 3 1 20 17 17 17 6 6 3 4 17 15 1 Highest-Rated Group 796 | . . . . 68 52 8 . 101 101 51 . 237 . . 139 178 147 49 758 599 796 796 394 243 218 210 706 673 62 Highest-Rated Ally 178 | . . . . 31 31 8 . 39 39 31 . 95 . . 116 49 49 49 50 46 159 159 159 109 109 64 64 178 62 Total Orders 37 | . . . . 3 . . . . . 4 . 2 . . . 1 . . . . . 4 2 3 9 4 5 . . STAY 20 | . . . . 1 . . . . . 2 . 1 . . . . . . . . . 2 1 2 6 2 3 . . ROAM 1 | . . . . 1 . . . . . . . . . . . . . . . . . . . . . . . . . FOLLOW 13 | . . . . 1 . . . . . 2 . 1 . . . . . . . . . 2 1 1 2 1 2 . . GUARD 1 | . . . . . . . . . . . . . . . . . . . . . . . . . 1 . . . . AID 2 | . . . . . . . . . . . . . . . . 1 . . . . . . . . . 1 . . . Ally Attacks 1012 | . . . . 16 . 2 . 7 63 33 . 55 . . 20 16 22 12 21 133 136 109 14 73 80 41 45 112 2 Total Damage 29600 | . . . . 190 . 23 . 316 1551 661 . 2415 . . 827 450 531 135 488 2680 3876 3828 457 1020 2573 1515 1409 4655 . Kills 210 | . . . . 1 . . . 3 15 9 . 18 . . 15 4 7 2 1 18 18 24 1 9 17 7 11 30 . Allies Corrupted 9 | . . . . . . . . . . . . . . . . 2 . . . . . . . 2 2 2 . 1 . Allies Melted 1 | . . . . . . . . . . . . . . . . . . . . . . . . . 1 . . . . Turrets Deployed 3 | . . . . . . . . 1 1 . . 1 . . . . . . . . . . . . . . . . . Intel | -11 -10 -10 -9 -9 -9 -8 -8 -8 -8 -8 -7 -7 -6 -5 -5 -5 -5 -4 -4 -4 -4 -4 -4 -4 -4 -3 -3 -2 -2 ------- Run | Jun Mat Min Mat Min Exi Min Mat Gar Mat Gar Fac Gar Fac Fac Gar Fac Gar Fac Was Fac Ext Cet Arc Hub Gar Res Gar Res Tes Robot Analysis Total 9 | . 4 1 . . . . . . 1 . . . . . . 1 . 1 . . 1 . . . . . . . . Derelict Logs Recovered 2 | . . 1 . 1 . . . . . . . . . . . . . . . . . . . . . . . . . Drone Launches . | . . . . . . . . . . . . . . . . . . . . . . . . . . . . . . Drone Recoveries . | . . . . . . . . . . . . . . . . . . . . . . . . . . . . . . Exploration | -11 -10 -10 -9 -9 -9 -8 -8 -8 -8 -8 -7 -7 -6 -5 -5 -5 -5 -4 -4 -4 -4 -4 -4 -4 -4 -3 -3 -2 -2 ------------- Run | Jun Mat Min Mat Min Exi Min Mat Gar Mat Gar Fac Gar Fac Fac Gar Fac Gar Fac Was Fac Ext Cet Arc Hub Gar Res Gar Res Tes Turns Passed 40323 | 259 1530 1052 1355 1236 899 872 342 2432 2396 1882 453 2948 760 309 2080 2022 2283 347 936 727 1278 537 993 2973 1887 1644 1694 650 1547 Spaces Moved 18536 | 111 601 555 598 719 554 515 137 1241 1162 705 179 1051 278 179 1034 988 951 161 457 404 649 282 414 1407 883 758 863 207 493 Core 60 | 13 . 3 . . . . . . . . . . . . . . . . . . . . 2 . . . . . 42 Treads 17784 | 98 601 124 517 719 554 515 137 1241 1162 705 179 1051 278 179 1034 988 951 161 457 404 649 282 412 1407 883 758 863 207 268 Legs . | . . . . . . . . . . . . . . . . . . . . . . . . . . . . . . Wheels 661 | . . 428 81 . . . . . . . . . . . . . . . . . . . . . . . . . 152 Hover 31 | . . . . . . . . . . . . . . . . . . . . . . . . . . . . . 31 Flight . | . . . . . . . . . . . . . . . . . . . . . . . . . . . . . . Fastest Speed 50 | 50 160 110 110 160 160 160 160 160 156 236 240 160 240 160 160 160 160 160 155 155 155 155 155 155 150 150 150 150 50 Average Speed 171 | 158 210 143 153 160 160 160 160 160 164 236 240 226 240 160 160 161 171 160 174 155 155 155 170 155 155 150 150 203 237 Slowest Speed 3300 | 200 240 850 240 160 160 160 160 160 240 240 240 320 240 160 240 240 320 160 243 240 155 155 3300 160 230 230 150 232 2700 Overloaded Moves . | . . . . . . . . . . . . . . . . . . . . . . . . . . . . . . Propulsion Burnouts . | . . . . . . . . . . . . . . . . . . . . . . . . . . . . . . Robots Hopped 2 | . . . . . . . . . . . . . . . . . . . 2 . . . . . . . . . . Cave-ins Triggered . | . . . . . . . . . . . . . . . . . . . . . . . . . . . . . . Exploration Rate (%) 56 | 7 78 88 45 98 72 87 10 94 76 52 4 87 11 5 90 21 88 5 97 11 86 80 89 60 92 17 92 7 60 Regions Visited 29 Branch Regions 9 Pre-discovered Areas 7 | . 2 1 . 1 1 . . . 2 . . . . . . . . . . . . . . . . . . . . Known Exits Taken 9 | . . . . . . 1 1 . 1 . 1 . . 1 . 1 . . . . . . . 1 . 1 . 1 . Unknown Exits Taken 11 | 1 1 1 1 1 1 . . . . . . . 1 . . . . . . 1 1 1 1 . . . . . . Scrap Searched 5 | . . 1 . 3 . 1 . . . . . . . . . . . . . . . . . . . . . . . Spaces Dug 173 | . 5 57 7 8 . . . 12 8 8 1 5 5 3 14 7 6 3 . 6 . . . 6 . 7 . . 5 Terrain Destroyed 714 | 3 15 98 7 17 . 16 . 17 20 8 1 154 6 7 93 13 8 4 3 8 13 . . 99 4 57 2 10 31 Melee 66 | . . . 7 . . . . 12 6 8 1 5 4 . 12 . 4 . . . . . . 1 . 6 . . . Projectile 164 | . 5 14 . . . . . . 14 . . . 2 7 11 13 4 4 3 8 13 . . 21 4 4 1 10 26 AOE 484 | 3 10 84 . 17 . 16 . 5 . . . 149 . . 70 . . . . . . . . 77 . 47 1 . 5 Terrain Rammed . | . . . . . . . . . . . . . . . . . . . . . . . . . . . . . . Walls Destroyed . | . . . . . . . . . . . . . . . . . . . . . . . . . . . . . . Machines Disabled . | . . . . . . . . . . . . . . . . . . . . . . . . . . . . . . Actions | -11 -10 -10 -9 -9 -9 -8 -8 -8 -8 -8 -7 -7 -6 -5 -5 -5 -5 -4 -4 -4 -4 -4 -4 -4 -4 -3 -3 -2 -2 --------- Run | Jun Mat Min Mat Min Exi Min Mat Gar Mat Gar Fac Gar Fac Fac Gar Fac Gar Fac Was Fac Ext Cet Arc Hub Gar Res Gar Res Tes Total 24881 | 149 805 697 869 792 570 551 214 1548 1509 848 198 1434 353 195 1405 1388 1531 223 590 483 861 368 539 1944 1292 1138 1197 365 825 Wait 2206 | . 84 53 101 33 1 17 25 142 115 46 . 23 6 . 135 175 211 21 75 24 35 22 34 311 145 136 98 30 108 Move 18510 | 110 600 554 597 718 553 514 137 1240 1162 704 179 1050 277 178 1033 988 950 161 453 403 648 281 413 1407 882 757 862 206 493 Hop 1 | . . . . . . . . . . . . . . . . . . . 1 . . . . . . . . . . Pick Up 358 | 3 38 10 20 8 6 . 4 8 33 5 3 42 2 2 14 17 38 3 6 2 . 10 2 16 23 16 14 7 6 Fast Attach 240 | 9 1 3 11 . . 2 4 1 20 1 3 15 6 1 3 7 16 . 13 10 7 8 4 6 29 23 11 3 23 Attach 197 | . . 7 9 2 2 1 4 5 9 2 2 17 3 1 6 9 19 5 1 2 . 2 . 12 16 15 8 12 26 Detach 138 | 2 1 2 5 1 1 1 2 2 4 1 . 12 4 1 1 6 17 1 5 4 2 1 . 4 13 13 7 2 23 Swap 384 | 1 9 13 13 10 1 4 5 23 24 16 4 41 15 1 20 25 31 7 8 2 7 15 2 26 11 25 8 12 5 Drop 441 | 1 28 5 24 8 6 1 7 8 42 7 5 49 6 2 6 16 43 1 22 13 7 20 3 10 43 30 16 . 12 Fire 1925 | 23 42 50 77 7 . 5 24 55 87 28 1 154 27 8 171 144 191 17 6 21 46 9 80 149 130 83 83 87 120 Melee 165 | . . . 9 . . . 1 23 6 20 1 24 5 . 16 . 13 7 . . . . . 2 . 37 . 1 . Ram . | . . . . . . . . . . . . . . . . . . . . . . . . . . . . . . Kick . | . . . . . . . . . . . . . . . . . . . . . . . . . . . . . . Crush 44 | . 2 . 3 5 . 6 1 . 7 . . 1 . 1 . 1 . . . 1 6 . 1 1 . 3 . 5 . Escape Stasis 33 | . . . . . . . . . . 10 . 4 2 . . . 2 . . 1 2 . . . . . 3 . 9 Rewire 239 | . . . . . . . . 41 . 8 . 2 . . . . . . . . 101 . . . . . 87 . . Trap . | . . . . . . . . . . . . . . . . . . . . . . . . . . . . . . Miscellaneous . | . . . . . . . . . . . . . . . . . . . . . . . . . . . . . . Route ------- -11/Junkyard -10/Materials (discovered 3 exits: *Mat x2 / *Min) -10/Mines (discovered 2 exits: *Mat x2) -9/Materials (discovered 2 exits: *Mat / *Min) -9/Mines (discovered 3 exits: *Mat x2 / *Exi) -9/Exiles -8/Mines (discovered 2 exits: *Mat x2) -8/Materials -8/Garrison (discovered 3 exits: *Mat x3) -8/Materials (discovered 4 exits: *Fac x3 / Gar) -8/Garrison (discovered 3 exits: *Fac x3) -7/Factory -7/Garrison (discovered 3 exits: *Fac x3) -6/Factory -5/Factory -5/Garrison (discovered 3 exits: *Fac x3) -5/Factory (discovered 3 exits: *Fac x2 / Gar) -5/Garrison (discovered 3 exits: *Fac x3) -4/Factory -4/Waste -4/Factory -4/Extension (discovered 3 exits: *Res x2 / *Cet) -4/Cetus (discovered 2 exits: *Res / *Arc) -4/Archives (discovered 3 exits: *Res / *Hub x2) -4/Hub_04(d) (discovered 2 exits: *Res / Gar) -4/Garrison (discovered 3 exits: *Res x3) -3/Research -3/Garrison (discovered 3 exits: [*Res x3]) -2/Research (discovered 2 exits: [*Acc] / *Tes) -2/Testing (discovered 1 exit: [*Acc]) History --------- Turn | Location | Event 20 | -11/Junkyard | Discovered new exit (range 16) 260 | -11/Junkyard | Entered Materials 317 | -10/Materials | Build established: Mutant 691 | -10/Materials | Discovered new exit (range 15) 1134 | -10/Materials | Discovered new exit (range 11) 1706 | -10/Materials | Discovered new exit (range 14) 1790 | -10/Materials | Entered Mines 1791 | -10/Mines | Assembled infested the area 1796 | -10/Mines | Assisted by a Guerilla fighting off Assembled 1871 | -10/Mines | Destroyed 13 combat bots 2287 | -10/Mines | Core integrity fell below 50% 2325 | -10/Mines | Lost 4 parts (3n1u) 2505 | -10/Mines | Learned location of Storage (-9) 2652 | -10/Mines | Build established: Scavenger-Mutant 2678 | -10/Mines | Discovered new exit (range 11) 2824 | -10/Mines | Discovered new exit (range 8) 2838 | -10/Mines | Central database locked down 2842 | -10/Mines | Entered Materials 2842 | -9/Materials | Evolved 2 slots: Propulsion x1, Utility x1 3042 | -9/Materials | System corruption reached 10% 3066 | -9/Materials | Destroyed 10 combat bots 3108 | -9/Materials | Lost 6 parts (1p2n2u1w) 3313 | -9/Materials | Discovered new exit (range 12) 3544 | -9/Materials | Discovered new exit (range 4) 3899 | -9/Materials | Identified exit to Materials 4197 | -9/Materials | Entered Mines 4228 | -9/Mines | Assisted by bots powering up and referring to "LRC-V3" 4380 | -9/Mines | A weapon hastily lodged in a ceiling crevice suddenly fell to the ground 4670 | -9/Mines | Deemed a non-threat by the Exiles lab entrance 4670 | -9/Mines | Discovered new exit (range 5) 4822 | -9/Mines | Discovered exit to Materials (range 6) 4849 | -9/Mines | Discovered exit to Materials (range 7) 5051 | -9/Mines | Met a Derelict shopkeep closing up shop 5433 | -9/Mines | Entered Exiles 5433 | -9/Exiles | Accompanied by 3 allies 5463 | -9/Exiles | Led the pair of lost Derelicts to a safe place 5473 | -9/Exiles | Met 8R-AWN 5499 | -9/Exiles | Met EX-HEX 5546 | -9/Exiles | Met EX-BIN 5583 | -9/Exiles | Met EX-DEC 5591 | -9/Exiles | Learned location of Zion (-6) 5652 | -9/Exiles | Discovered new exit (range 12) 6111 | -9/Exiles | Aligned with FarCom system 6113 | -9/Exiles | Given EX-Vault access code 6151 | -9/Exiles | Opened EX-Vault 6167 | -9/Exiles | Found PSU Rigger 6169 | -9/Exiles | Found Deploy-a-Sentry 6172 | -9/Exiles | Found Deploy-a-Sentry 6175 | -9/Exiles | Found Deploy-a-Sentry 6180 | -9/Exiles | Found Superbattery 6218 | -9/Exiles | Warned to stay clear of 0b10 Research branches 6226 | -9/Exiles | Exiles lab attacked by MAIN.C 6332 | -9/Exiles | Stole three prototypes: Superbattery, PSU Rigger, Deploy-a-Sentry 6332 | -9/Exiles | Entered Mines 6332 | -8/Mines | Accompanied by 1 ally 6394 | -8/Mines | Discovered exit to Materials (range 8) 6628 | -8/Mines | Build established: Mutant 6908 | -8/Mines | Discovered exit to Materials (range 15) 7204 | -8/Mines | Entered Materials 7204 | -8/Materials | Evolved 2 slots: Propulsion x1, Utility x1 7395 | -8/Materials | Garrison activated, responded to threat 7512 | -8/Materials | Build established: Scavenger-Mutant 7546 | -8/Materials | Identified exit to Garrison 7546 | -8/Materials | Entered Garrison 7874 | -8/Garrison | Triggered checkpoint 7909 | -8/Garrison | Discovered new exit (range 10) 7917 | -8/Garrison | Build established: Mutant 7975 | -8/Garrison | Triggered checkpoint 8221 | -8/Garrison | Discovered new exit (range 10) 8282 | -8/Garrison | Triggered checkpoint 8301 | -8/Garrison | Build established: Scavenger-Mutant 8405 | -8/Garrison | Triggered checkpoint 8768 | -8/Garrison | Installed Relay Interface Framework 8850 | -8/Garrison | Triggered checkpoint 8854 | -8/Garrison | Discovered new exit (range 15) 9161 | -8/Garrison | Garrison Relay disabled 9422 | -8/Garrison | Garrison Relay disabled 9496 | -8/Garrison | DAS Turret deployed 9978 | -8/Garrison | Entered Materials 9978 | -8/Materials | Accompanied by 3 allies 10378 | -8/Materials | First assault squad dispatched 10529 | -8/Materials | Destroyed 8 combat bots 10829 | -8/Materials | Discovered new exit (range 10) 11265 | -8/Materials | Repaired Hrd. Medium Armor Plating? 11348 | -8/Materials | Discovered new exit (range 14) 11696 | -8/Materials | DAS Turret deployed 11964 | -8/Materials | Discovered new exit (range 10) 12029 | -8/Materials | Build established: Mutant 12374 | -8/Materials | Identified exit to Garrison 12374 | -8/Materials | Entered Garrison 12704 | -8/Garrison | Triggered checkpoint 12769 | -8/Garrison | Garrison Relay disabled 12823 | -8/Garrison | Expanded RIF knowledge: Alert ID Control 13046 | -8/Garrison | Triggered checkpoint 13112 | -8/Garrison | Triggered checkpoint 13214 | -8/Garrison | Triggered checkpoint 13248 | -8/Garrison | Garrison Relay disabled 13300 | -8/Garrison | Discovered new exit (range 14) 13422 | -8/Garrison | Triggered checkpoint 13511 | -8/Garrison | Discovered new exit (range 10) 13565 | -8/Garrison | Triggered checkpoint 13859 | -8/Garrison | Discovered new exit (range 13) 14256 | -8/Garrison | Entered Factory 14256 | -7/Factory | Evolved 2 slots: Utility x2 14258 | -7/Factory | FarCom data flow suspended 14439 | -7/Factory | Build established: Bothacker-Mutant 14709 | -7/Factory | Identified exit to Garrison 14709 | -7/Factory | Entered Garrison 14758 | -7/Garrison | Triggered checkpoint 14881 | -7/Garrison | Expanded RIF knowledge: Patrol Navigation 14945 | -7/Garrison | Phase Generator disabled 15062 | -7/Garrison | Garrison Relay disabled 15508 | -7/Garrison | Triggered checkpoint 15725 | -7/Garrison | DAS Turret deployed 15858 | -7/Garrison | Triggered checkpoint 15974 | -7/Garrison | Lost 4 parts (2n2u) 16044 | -7/Garrison | Discovered new exit (range 12) 16195 | -7/Garrison | Garrison Relay disabled 16268 | -7/Garrison | Triggered checkpoint 16275 | -7/Garrison | Triggered checkpoint 16275 | -7/Garrison | Triggered checkpoint 16379 | -7/Garrison | Found embedded Infiltrators 16444 | -7/Garrison | Triggered checkpoint 16574 | -7/Garrison | Discovered new exit (range 14) 16686 | -7/Garrison | System corruption reached 10% 16869 | -7/Garrison | Rescued a captive Derelict 16873 | -7/Garrison | Rescued a captive Derelict 17220 | -7/Garrison | Triggered checkpoint 17473 | -7/Garrison | Found Unknown Device 17473 | -7/Garrison | Identified Quantum Capacitor 17619 | -7/Garrison | Discovered new exit (range 8) 17657 | -7/Garrison | Entered Factory 17657 | -6/Factory | Evolved 2 slots: Power x1, Utility x1 18357 | -6/Factory | First assault squad dispatched 18364 | -6/Factory | Discovered new exit (range 9) 18417 | -6/Factory | Entered another Factory area 18417 | -5/Factory | Evolved 2 slots: Propulsion x2 18718 | -5/Factory | Identified exit to Garrison 18726 | -5/Factory | Entered Garrison 18746 | -5/Garrison | Triggered checkpoint 18782 | -5/Garrison | Expanded RIF knowledge: Robot Detection 18791 | -5/Garrison | Garrison Relay disabled 18958 | -5/Garrison | Triggered checkpoint 19099 | -5/Garrison | Build established: Botlord-Mutant 19102 | -5/Garrison | Garrison Relay disabled 19240 | -5/Garrison | Phase Generator disabled 19490 | -5/Garrison | Triggered checkpoint 19524 | -5/Garrison | Triggered checkpoint 19604 | -5/Garrison | Discovered new exit (range 13) 19612 | -5/Garrison | Spotted B-86 Titan 19636 | -5/Garrison | Hijacked Titan 6a control node with streamctrl_high 19795 | -5/Garrison | Triggered checkpoint 19859 | -5/Garrison | Triggered checkpoint 19880 | -5/Garrison | Discovered new exit (range 15) 19992 | -5/Garrison | Triggered checkpoint 20048 | -5/Garrison | Garrison Relay disabled 20453 | -5/Garrison | Triggered checkpoint 20578 | -5/Garrison | Discovered new exit (range 10) 20642 | -5/Garrison | Triggered checkpoint 20736 | -5/Garrison | System corruption reached 10% 20743 | -5/Garrison | Garrison Relay disabled 20806 | -5/Garrison | Entered Factory 20806 | -5/Factory | Accompanied by 4 allies 21106 | -5/Factory | First assault squad dispatched 21496 | -5/Factory | Discovered new exit (range 6) 21693 | -5/Factory | P-70 Sage assimilated allied Fighter 6b 22225 | -5/Factory | Spotted B-75 Beast 22351 | -5/Factory | Discovered new exit (range 11) 22570 | -5/Factory | Garrison activated, responded to threat 22721 | -5/Factory | Found Prototype Launcher 22721 | -5/Factory | Identified Tesla Bomb Launcher 22725 | -5/Factory | Found Prototype Launcher 22725 | -5/Factory | Identified Scatter Rocket Array 22828 | -5/Factory | Identified exit to Garrison 22828 | -5/Factory | Entered Garrison 22940 | -5/Garrison | Triggered checkpoint 23341 | -5/Garrison | System corruption reached 30% 23439 | -5/Garrison | Garrison Relay disabled 23762 | -5/Garrison | Triggered checkpoint 23988 | -5/Garrison | Triggered checkpoint 24039 | -5/Garrison | Expanded RIF knowledge: Structural Interface 24126 | -5/Garrison | Discovered new exit (range 10) 24144 | -5/Garrison | Build established: Bothacker-Mutant 24256 | -5/Garrison | Triggered checkpoint 24310 | -5/Garrison | Garrison Relay disabled 24362 | -5/Garrison | Triggered checkpoint 24436 | -5/Garrison | Discovered new exit (range 8) 24496 | -5/Garrison | Spotted B-75 Beast 24533 | -5/Garrison | Destroyed B-75 Beast 24652 | -5/Garrison | Found Relay Coupler [Proto] 24655 | -5/Garrison | Found Relay Coupler [Proto] 24657 | -5/Garrison | Found Relay Coupler [Proto] 24660 | -5/Garrison | Found Relay Coupler [Proto] 24874 | -5/Garrison | Triggered checkpoint 24954 | -5/Garrison | Build established: Botlord-Mutant 25065 | -5/Garrison | Garrison Relay disabled 25100 | -5/Garrison | Discovered new exit (range 8) 25111 | -5/Garrison | Entered Factory 25111 | -4/Factory | Evolved 2 slots: Utility x2 25400 | -4/Factory | First assault squad dispatched 25458 | -4/Factory | Sucked down chute 25458 | -4/Factory | Entered Waste 25459 | -4/Waste | Joined by Warlord forces that had cleared the area 25531 | -4/Waste | Found Fusion Bomb Launcher 26301 | -4/Waste | Discovered new exit (range 12) 26360 | -4/Waste | A Compactor rumbled back to life 26360 | -4/Waste | Spotted C-40 Crusher 26364 | -4/Waste | Allies destroyed C-40 Crusher 26394 | -4/Waste | Entered Factory 26394 | -4/Factory | Accompanied by 17 allies 26866 | -4/Factory | Discovered new exit (range 10) 27121 | -4/Factory | Entered Extension 27121 | -4/Extension | Accompanied by 6 allies 27411 | -4/Extension | Rescued A7 27824 | -4/Extension | Spotted B-86 Titan 27837 | -4/Extension | Destroyed B-86 Titan 27844 | -4/Extension | Spotted B-86 Titan 27866 | -4/Extension | Allies destroyed B-86 Titan 27893 | -4/Extension | Discovered new exit (range 4) 28084 | -4/Extension | Rescued a captive Derelict 28084 | -4/Extension | Rescued a captive Derelict 28111 | -4/Extension | Rescued a captive Derelict 28116 | -4/Extension | Rescued a captive Derelict 28356 | -4/Extension | Discovered new exit (range 10) 28358 | -4/Extension | Discovered new exit (range 6) 28399 | -4/Extension | Entered Cetus 28399 | -4/Cetus | Accompanied by 17 allies (A7) 28404 | -4/Cetus | Acquired a Cetus Manufacturing Module code from A7 28425 | -4/Cetus | Spotted Cetus Guard 28427 | -4/Cetus | Spotted Cetus Guard 28427 | -4/Cetus | Spotted Cetus Guard 28438 | -4/Cetus | Spotted Cetus Guard 28439 | -4/Cetus | Allies destroyed Cetus Guard 28441 | -4/Cetus | Allies destroyed Cetus Guard 28442 | -4/Cetus | Allies destroyed Cetus Guard 28446 | -4/Cetus | Allies destroyed Cetus Guard 28517 | -4/Cetus | Started Cetus Manufacturing Module 28542 | -4/Cetus | Manufactured an Enhanced Grunt 28554 | -4/Cetus | Cetus Manufacturing Module disabled 28642 | -4/Cetus | Escorted A7 to Cetus Mainframe 28670 | -4/Cetus | Discovered new exit (range 15) 28703 | -4/Cetus | Spotted Cetus Guard 28703 | -4/Cetus | Spotted Cetus Guard 28708 | -4/Cetus | Spotted Cetus Guard 28710 | -4/Cetus | Spotted Cetus Guard 28713 | -4/Cetus | Allies destroyed Cetus Guard 28718 | -4/Cetus | Destroyed Cetus Guard 28721 | -4/Cetus | Destroyed Cetus Guard 28722 | -4/Cetus | Allies destroyed Cetus Guard 28742 | -4/Cetus | Discovered new exit (range 15) 28750 | -4/Cetus | Met Revision 17 28936 | -4/Cetus | Entered Archives 28936 | -4/Archives | Accompanied by 6 allies (A7) 28941 | -4/Archives | Received a hacking code to weaken MAIN.C 28993 | -4/Archives | Unable to access archive contents 29009 | -4/Archives | Unable to access archive contents 29015 | -4/Archives | Discovered new exit (range 16) 29030 | -4/Archives | Unable to access archive contents 29036 | -4/Archives | Discovered new exit (range 16) 29047 | -4/Archives | Unable to access archive contents 29053 | -4/Archives | Discovered new exit (range 15) 29929 | -4/Archives | Entered Hub_04(d) 29929 | -4/Hub_04(d) | Accompanied by 5 allies 30188 | -4/Hub_04(d) | Discovered new exit (range 15) 30353 | -4/Hub_04(d) | Network Hub disabled 30764 | -4/Hub_04(d) | Spotted Lightning 30764 | -4/Hub_04(d) | Spotted Lightning 30767 | -4/Hub_04(d) | Network Hub disabled 30768 | -4/Hub_04(d) | Spotted Lightning 30775 | -4/Hub_04(d) | System corruption reached 10% 30776 | -4/Hub_04(d) | Destroyed Lightning 30776 | -4/Hub_04(d) | Destroyed Lightning 30804 | -4/Hub_04(d) | Destroyed Lightning 32231 | -4/Hub_04(d) | Network Hub disabled 32231 | -4/Hub_04(d) | Spotted Lightning 32231 | -4/Hub_04(d) | Spotted Lightning 32234 | -4/Hub_04(d) | System corruption reached 30% 32240 | -4/Hub_04(d) | Spotted Lightning 32256 | -4/Hub_04(d) | Assimilated Lightning with formatsys_high 32259 | -4/Hub_04(d) | Assimilated Lightning with formatsys_high 32276 | -4/Hub_04(d) | Lost 3 parts (2n1u) 32406 | -4/Hub_04(d) | Destroyed Lightning 32421 | -4/Hub_04(d) | Found Exp. EM Disruption Field 32427 | -4/Hub_04(d) | Found Exp. Targeting Computer 32434 | -4/Hub_04(d) | Found Exp. Phase Shifter 32438 | -4/Hub_04(d) | Found EMDS 32902 | -4/Hub_04(d) | Identified exit to Garrison 32902 | -4/Hub_04(d) | Entered Garrison 32902 | -4/Garrison | Accompanied by 2 allies 32904 | -4/Garrison | Triggered checkpoint 32989 | -4/Garrison | Garrison Relay disabled 33079 | -4/Garrison | Spotted B-86 Titan 33091 | -4/Garrison | Destroyed B-86 Titan 33096 | -4/Garrison | Triggered checkpoint 33123 | -4/Garrison | Triggered checkpoint 33145 | -4/Garrison | Triggered checkpoint 33166 | -4/Garrison | Found Corrupted Exp. EM Disruption Field 33201 | -4/Garrison | Found Corrupted EMDS 33203 | -4/Garrison | Destroyed 13 combat bots 33205 | -4/Garrison | Found EMDS 33208 | -4/Garrison | Found Exp. EM Disruption Field 33223 | -4/Garrison | Found Exp. Targeting Computer 33271 | -4/Garrison | Found Unknown Protection 33271 | -4/Garrison | Identified Hvy. Reflective Plating 33420 | -4/Garrison | Discovered new exit (range 5) 33435 | -4/Garrison | Triggered checkpoint 33530 | -4/Garrison | Destroyed 10 combat bots 33592 | -4/Garrison | Triggered checkpoint 33616 | -4/Garrison | Spotted Executioner 33616 | -4/Garrison | Spotted Executioner 33633 | -4/Garrison | Destroyed Executioner 33636 | -4/Garrison | Destroyed Executioner 33653 | -4/Garrison | Found Corrupted Prototype Processor 33661 | -4/Garrison | Garrison Relay disabled 33666 | -4/Garrison | Identified Exp. Core Analyzer 33787 | -4/Garrison | Triggered checkpoint 33829 | -4/Garrison | Expanded RIF knowledge: Code Merge 33849 | -4/Garrison | Discovered new exit (range 47) 33849 | -4/Garrison | Discovered new exit (range 15) 33849 | -4/Garrison | Discovered new exit (range 64) 33864 | -4/Garrison | Garrison Relay disabled 34104 | -4/Garrison | Spotted B-86 Titan 34172 | -4/Garrison | Triggered checkpoint 34303 | -4/Garrison | Rescued a captive Derelict 34304 | -4/Garrison | Rescued a captive Derelict 34415 | -4/Garrison | P-70 Sage assimilated allied Sentinel 7b 34516 | -4/Garrison | Triggered checkpoint 34570 | -4/Garrison | Garrison Relay disabled 34602 | -4/Garrison | Triggered checkpoint 34654 | -4/Garrison | Garrison Relay disabled 34789 | -4/Garrison | Entered Research 34789 | -3/Research | Accompanied by 1 ally 34789 | -3/Research | Evolved 2 slots: Utility x2 35038 | -3/Research | Found Unknown Device 35038 | -3/Research | Identified Launcher Loader 35245 | -3/Research | Found Unknown Device 35245 | -3/Research | Identified Antimissile System 35539 | -3/Research | First assault squad dispatched 35564 | -3/Research | Found Prototype Slashing Weapon 35564 | -3/Research | Identified Vibroblade 35665 | -3/Research | Assimilated ARC 8a with formatsys_deep 36282 | -3/Research | Garrison activated, responded to threat 36422 | -3/Research | Identified exit to Garrison 36433 | -3/Research | Entered Garrison 36433 | -3/Garrison | Accompanied by 4 allies 36489 | -3/Garrison | Triggered checkpoint 36523 | -3/Garrison | Garrison Relay disabled 36636 | -3/Garrison | Spotted B-86 Titan 36651 | -3/Garrison | Destroyed B-86 Titan 36736 | -3/Garrison | Destroyed 9 combat bots 36754 | -3/Garrison | System corruption reached 10% 36776 | -3/Garrison | Triggered checkpoint 36863 | -3/Garrison | Lost 3 parts (2u1w) 36936 | -3/Garrison | Discovered new exit (range 12) 36944 | -3/Garrison | Garrison Relay disabled 37006 | -3/Garrison | Triggered checkpoint 37056 | -3/Garrison | Expanded RIF knowledge: Code Merge 37069 | -3/Garrison | Garrison Relay disabled 37288 | -3/Garrison | Triggered checkpoint 37337 | -3/Garrison | Discovered new exit (range 15) 37580 | -3/Garrison | Triggered checkpoint 37599 | -3/Garrison | Garrison Relay disabled 37800 | -3/Garrison | Triggered checkpoint 37844 | -3/Garrison | Triggered checkpoint 37905 | -3/Garrison | Discovered new exit (range 12) 37986 | -3/Garrison | Triggered checkpoint 38127 | -3/Garrison | Entered Research 38127 | -2/Research | Accompanied by 15 allies 38127 | -2/Research | Evolved 2 slots: Power x1, Utility x1 38259 | -2/Research | Discovered new exit (range 13) 38417 | -2/Research | P-80 Master assimilated allied Rainmaker 8a 38451 | -2/Research | P-80 Master assimilated allied Rainmaker 8b 38652 | -2/Research | First assault squad dispatched 38726 | -2/Research | Discovered new exit (range 15) 38772 | -2/Research | Identified exit to Testing 38777 | -2/Research | Entered Testing 38934 | -2/Testing | Found Prototype Launcher 38934 | -2/Testing | Identified Z-bomb Delivery System 39035 | -2/Testing | Found Prototype Hackware 39068 | -2/Testing | System corruption reached 10% 39240 | -2/Testing | Found Quantum Capacitor 39253 | -2/Testing | Found Quantum Capacitor 39471 | -2/Testing | Discovered new exit (range 12) 39498 | -2/Testing | Scanned by Researcher 39620 | -2/Testing | Destroyed 10 combat bots 39621 | -2/Testing | Lost 14 parts (3p4n5u2w) 39920 | -2/Testing | Found Prototype Ballistic Cannon 39920 | -2/Testing | Identified Omega Cannon 40062 | -2/Testing | Spotted Superbehemoth 40140 | -2/Testing | Superbehemoth self-activated to run performance analysis 40249 | -2/Testing | Core integrity fell below 50% 40249 | -2/Testing | System corruption reached 30% 40285 | -2/Testing | Lost 19 parts (3p7n6u3w) 40308 | -2/Testing | Core integrity fell below 20% 40324 | -2/Testing | Destroyed by L-61 Swordsman with Power Sword Last Messages --------------- 40310_ System corrupted by crushing effect (+5). 40310_ System corrupted by crushing effect (+3). 40310_ System corrupted by crushing effect (+1). 40312_ System corrupted: Heat flow error (+152). 40312_ Held in stasis. 40312_ Relay Coupler [Sentry] destroyed. 40312_ System corrupted by crushing effect (+1). 40312_ Knocked back. 40313_ Acquired 5 matter. 40316_ Held in stasis. 40316_ C-65 Expert is analyzing... 40319_ Superbehemoth disintegrates Wall. 40320_ Held in stasis. 40320_ C-65 Expert is analyzing... 40321_ Superbehemoth disintegrates Wall. 40322_ Graphene Brace destroyed. 40322_ System corrupted by crushing effect (+2). 40324_ Superbehemoth disintegrates Wall. 40324_ Held in stasis. 40324_ C-65 Expert is analyzing... Map ----- +----------------------------------------------------+ | ?????????????# # #??????? | | ?????????????# # #??????? | | ?????????????# + #??????? | | ?????????????# * # #??????? | | ?????????????# # ###"##### ##########? | | ?????????????# # #?? ??# # #? | | ?????????????# # #???" ?# # #? | | ?????????????# # +?""" # + #? | | ?????????????####+##+### # """ # # #? | | ???????????????????# #?# # # # #? | | ???????????????????# #?;gk# ??" # #? | | ???????????????????# #?; ^# ????# # #? | | ????????????????#+##+##; "##?????# # #? | | ????????????????# #;BB#???????# # #? | | ????????????????# #;BB#???????# ##+#####+#? | | ????????????????# """#; #??????## #??????# #? | | ????????????????# """## #??????## ##+#####+## | | ????????????????#! """## #???? # # | | ????????????????# ## #??? # # | | ????????????????# ##c ##? [#! # | | ?????????###+######+###k #"" =#| # | | ????? %%$ #" *!%+!! # | | ????? |$= % """ !%*%= # | | ????????####+########## [ #????" !==# ! # | | ??????????????????????##bl##????" ?# * # | | ???????????????????????# @#??????? ??########### | | ???????????????????????# #???????????????""""# ## | | ???????????????????????# #?????????????#""T""#"## | | ???????????????????????# #????????????? | | ???????????????????????# #???????????? | | ???????????????????????# #??????????? | | ???????????????????????# #??????????? | | ???????????????????????# #????????????#######"""+ | | ???????????????????????# #??????????????????? ? | | ???????????????????????# #?????????????????? " " | | ???????????????????????# #?????????????????? """ | | ???????????????????????" ??????????????????? """ | | ???????????????????????T ??????????????????? ??? | | ???????????????????????# ???????????????????????? | | ???????????????????????? ???????????????????????? | | ???????????????????????? ???????????????????????? | | ?????????????????????????????????????????????????? | | ?????????????????????????????????????????????????? | | ?????????????????????????????????????????????????? | | ?????????????????????????????????????????????????? | | ?????????????????????????????????????????????????? | | ?????????????????????????????????????????????????? | | ?????????????????????????????????????????????????? | | ?????????????????????????????????????????????????? | | ?????????????????????????????????????????????????? | +----------------------------------------------------+ Best States ------------- Heat Dissipation 125 Coolant Potential 100 Energy Generation 71 Energy Capacity 2340 Matter Stores 472 Matter Capacity 500 Sight Range 16 Terrain Scan Range 20 Terrain Scan Density 210 ECM Strength 1 Jamming Range 16 Armor Coverage 1350 Resistance: TH 30 Resistance: EM 75 Power Shielding 33 Weapon Cycling 15 Phase Shifting 10 Evasion (%) 50 Targeting Accuracy 16 Launcher Accuracy 40 Core Analysis 8 Recoil Reduction 6 Matter Filtering 50 Kinecelleration 30 Offensive Hacking 12 Defensive Hacking 10 Relay Coupler Types 6 Relay Coupler Value 192 Item Schematics ----------------- Lgt. Nuclear Core | -8/Materials | Extracted VTOL Module | -8/Materials | Extracted Gui. Micro-nuke Launcher | -2/Testing | Archive Lrn. Phase Cannon | -2/Testing | Archive Imp. Matter Neutralizer | -2/Testing | Archive Centrium Light Armor Plating | -2/Testing | Archive Robot Schematics ------------------ A-02 Transporter | -2/Testing | Archive Fabricated ------------ Nothing Alien Tech Used ----------------- None Achievements -------------- None Challenges ------------ None Game ------ Seed RiotStorageWarhead Manual? 0 Play Time 10:51:46 Cumulative 219.0 hours Start 2023.03.29 @ 01:10:55 End 2023.04.02 @ 03:02:10 Sessions 3 Manual Loads 0 Difficulty Rogue Special Mode None Game No. 116 Rogue 116 Adventurer 0 Explorer 0 Win Type - Total 5 Types 4/0/1/0/0/0/0/0/0 Lore% 59 Gallery% 75 Achievement% 64 Wizard Run 0 Options --------- ASCII 0 Keyboard 1 Movement Numpad Keybinds 0 Fullscreen 1 Font 18/Smallcaps Map View 76x50 Tactical HUD 1 Map Filters NONE Filters NONE Steam 1 RUN: 23296f31-8703-4986-96c8-3b545d3065a6